bitfinex-derivatives/quotes_SOLF0:USTF0_20240912
["timestamp","ask_amount","ask_price","bid_price","bid_amount"]
[1726111125872,11.35,135.36,135.32,1.3885]
[1726111126080,11.35,135.34,135.32,3.3247]
[1726111126875,11.35,135.34,135.3,2.6956]
[1726111127275,11.35,135.35,135.3,2.6956]
[1726111128385,11.35,135.34,135.28,1.3026]
[1726111128779,11.35,135.34,135.28,2.6296]
[1726111129279,11.35,135.34,135.31,3.3251]
[1726111130484,235.7181115,135.46,135.28,13.9796]
[1726111130679,235.7181115,135.46,135.29,1.3523]
[1726111130680,11.35,135.35,135.29,1.3523]
[1726111131375,11.35,135.35,135.32,3.3247]
[1726111132478,11.35,135.33,135.26,11.35]
[1726111132673,102.92851704,135.38,135.23,4.0708]
[1726111132674,11.35,135.31,135.23,4.0708]
[1726111132875,11.35,135.31,135.25,11.35]
[1726111133786,11.35,135.31,135.3,3.3252]
[1726111137180,11.35,135.32,135.31,3.3251]
[1726111137773,11.35,135.32,135.26,11.35]
[1726111137774,11.35,135.32,135.3,3.3253]
[1726111138780,11.35,135.32,135.29,3.3256]
[1726111139382,11.35,135.32,135.3,3.3252]
[1726111140287,3.75969495,135.35,135.27,11.35]
[1726111140583,11.35,135.34,135.32,3.3247]
[1726111140787,11.35,135.34,135.28,15.4569]
[1726111141177,11.35,135.34,135.32,3.3247]
[1726111141985,11.35,135.34,135.33,3.3247]
[1726111145690,11.35,135.34,135.32,3.3248]
[1726111146192,106.53475898,135.38,135.3,11.35]
[1726111146390,11.35,135.36,135.3,11.35]
[1726111146781,11.35,135.36,135.35,3.3242]
[1726111150792,11.35,135.36,135.34,3.3243]
[1726111155191,11.35,135.36,135.33,3.3246]
[1726111159997,14.6737,135.37,135.34,3.3244]
[1726111163803,11.35,135.37,135.34,3.3244]
[1726111164704,102.92851704,135.38,135.36,3.3239]
[1726111164893,102.92851704,135.38,135.34,11.35]
[1726111165093,228.0,135.46,135.34,11.35]
[1726111165405,11.35,135.45,135.4,11.35]
[1726111165599,11.35,135.45,135.27,3.65676831]
[1726111165600,11.35,135.45,135.39,11.35]
[1726111165927,14.6722,135.43,135.38,3.3233]
[1726111166102,14.6722,135.43,135.37,11.35]
[1726111167098,14.6722,135.43,135.39,3.323]
[1726111167300,15.09306567,135.45,135.39,11.35]
[1726111167502,11.35,135.45,135.39,11.35]
[1726111168002,15.11883111,135.45,135.39,11.35]
[1726111168199,3.76883111,135.45,135.42,3.3224]
[1726111168399,11.35,135.46,135.42,3.3224]
[1726111168601,3.61629022,135.45,135.42,3.3224]
[1726111169307,11.35,135.46,135.42,3.3224]
[1726111169601,3.71010472,135.45,135.42,3.3224]
[1726111170507,3.71010472,135.45,135.4,3.3227]
[1726111170706,3.71010472,135.45,135.39,11.35]
[1726111170904,14.6716,135.46,135.39,11.35]
[1726111171105,14.6716,135.46,135.41,3.3226]
[1726111171609,3.67890522,135.45,135.41,3.3226]
[1726111171807,7.00060522,135.45,135.39,11.35]
[1726111172009,11.35,135.44,135.37,11.35]
[1726111172199,15.10941128,135.44,135.37,11.35]
[1726111172405,11.35,135.44,135.39,11.35]
[1726111173806,11.35,135.44,135.41,3.3226]
[1726111179010,18.3222696,135.45,135.41,3.3226]
[1726111179407,3.322,135.44,135.4,3.3229]
[1726111179710,3.322,135.44,135.39,11.35]
[1726111180919,3.322,135.44,135.41,3.3227]
[1726111182516,3.3223,135.43,135.36,3.6981085]
[1726111182720,3.6504696,135.45,135.38,11.35]
[1726111183016,11.35,135.45,135.39,11.35]
[1726111183214,3.70290932,135.44,135.41,3.3225]
[1726111183608,15.05290932,135.44,135.38,11.35]
[1726111183808,11.35,135.44,135.38,11.35]
[1726111184420,18.34416192,135.44,135.4,3.3227]
[1726111185307,11.35,135.43,135.4,3.3227]
[1726111186819,3.3225,135.42,135.38,3.3232]
[1726111189619,11.35,135.41,135.38,3.3232]
[1726111192420,11.35,135.41,135.35,15.3077]
[1726111193327,11.35,135.41,135.35,3.9577]
[1726111193523,11.35,135.41,135.38,3.3233]
[1726111195827,14.6727,135.41,135.37,3.3236]
[1726111198427,3.3225,135.42,135.38,3.3233]
[1726111198628,11.35,135.41,135.38,3.3233]
[1726111201437,11.35,135.41,135.36,11.35]
[1726111201628,11.35,135.43,135.36,11.35]
[1726111202738,11.35,135.43,135.4,3.3229]
[1726111204435,14.6722,135.43,135.4,3.3229]
[1726111205132,11.35,135.43,135.4,3.3229]
[1726111205539,14.6722,135.43,135.38,3.3232]
[1726111205932,14.6722,135.43,135.36,11.35]
[1726111206331,14.6722,135.43,135.39,3.3231]
[1726111206737,14.6722,135.43,135.36,11.35]
[1726111206942,11.35,135.43,135.4,3.3228]
[1726111210742,11.35,135.43,135.41,3.3226]
[1726111213843,11.35,135.43,135.4,3.3228]
[1726111217647,702.02244359,135.58,135.42,11.35]
[1726111217945,702.02244359,135.58,135.46,11.35]
[1726111217946,11.35,135.51,135.46,11.35]
[1726111218148,11.35,135.53,135.46,11.35]
[1726111218446,470.25601573,135.58,135.47,11.35]
[1726111218447,11.35,135.54,135.47,11.35]
[1726111218844,11.35,135.54,135.49,3.3207]
[1726111219350,11.35,135.52,135.49,3.3207]
[1726111219543,15.0358629,135.52,135.49,3.3207]
[1726111221347,3.6858629,135.52,135.49,3.3207]
[1726111221650,14.6697,135.54,135.49,3.3207]
[1726111221850,14.6697,135.54,135.49,14.6707]
[1726111222037,14.6697,135.54,135.5,3.3204]
[1726111222441,3.3197,135.54,135.5,3.3204]
[1726111223450,11.35,135.56,135.49,14.6706]
[1726111224048,11.35,135.54,135.49,14.6706]
[1726111226953,11.35,135.54,135.49,3.3206]
[1726111227751,11.35,135.54,135.5,3.3204]
[1726111229761,470.25601573,135.58,135.51,11.35]
[1726111230058,11.35,135.58,135.52,11.35]
[1726111230561,11.35,135.58,135.53,3.3195]
[1726111231250,11.35,135.57,135.5,2.6432]
[1726111231556,11.35,135.57,135.51,11.35]
[1726111232455,11.35,135.55,135.5,1.3391]
[1726111233056,11.35,135.55,135.51,3.32]
[1726111239163,106.53475357,135.59,135.51,11.35]
[1726111239462,117.88475357,135.59,135.52,11.35]
[1726111240157,117.88475357,135.59,135.53,3.3195]
[1726111240359,117.88475357,135.59,135.52,11.35]
[1726111240865,117.88475357,135.59,135.54,3.3193]
[1726111241664,106.53475357,135.59,135.55,3.3192]
[1726111241958,106.53475357,135.59,135.54,11.35]
[1726111242962,117.88475357,135.59,135.54,11.35]
[1726111244863,117.88475357,135.59,135.54,14.6695]
[1726111245658,102.78198958,135.59,135.55,3.3192]
[1726111249366,228.0,135.68,135.55,11.35]
[1726111249556,11.35,135.62,135.55,11.35]
[1726111249757,3.70110586,135.61,135.55,11.35]
[1726111249967,3.70110586,135.61,135.57,3.3187]
[1726111251166,3.70110586,135.61,135.56,3.3189]
[1726111252273,11.35,135.61,135.55,14.6692]
[1726111252476,3.60022432,135.6,135.55,14.6692]
[1726111253773,3.60022432,135.6,135.55,11.35]
[1726111253972,11.35,135.59,135.54,14.6695]
[1726111254170,15.05424719,135.59,135.54,14.6695]
[1726111255071,11.35,135.58,135.53,3.3197]
[1726111255769,11.35,135.58,135.52,14.6699]
[1726111256173,11.35,135.57,135.51,11.35]
[1726111256472,11.35,135.57,135.5,13.9912]
[1726111257070,11.35,135.57,135.5,2.6412]
[1726111257276,11.35,135.57,135.5,17.3115]
[1726111257571,3.77904793,135.56,135.5,17.3115]
[1726111259478,3.77904793,135.56,135.51,3.3202]
[1726111260584,11.35,135.57,135.51,11.35]
[1726111260775,11.35,135.57,135.52,11.35]
[1726111261279,11.35,135.63,135.56,11.35]
[1726111261877,3.65442102,135.62,135.56,11.35]
[1726111262376,3.65442102,135.62,135.57,3.3186]
[1726111262689,11.35,135.63,135.56,11.35]
[1726111263080,15.08596656,135.63,135.56,11.35]
[1726111263982,15.08596656,135.63,135.56,14.6689]
[1726111264380,3.73596656,135.63,135.56,11.35]
[1726111264585,11.35,135.64,135.56,11.35]
[1726111264786,1.16131516,135.63,135.56,11.35]
[1726111264975,3.76446498,135.62,135.56,11.35]
[1726111265485,11.35,135.64,135.57,3.3187]
[1726111265685,1.16130891,135.63,135.57,3.3187]
[1726111265881,3.66044978,135.62,135.57,3.3187]
[1726111266088,11.35,135.62,135.5,6.35908633]
[1726111266281,11.35,135.6,135.54,11.35]
[1726111266682,11.35,135.6,135.54,14.6693]
[1726111267091,15.07721131,135.6,135.54,14.6693]
[1726111268583,15.07721131,135.6,135.54,3.3193]
[1726111269382,3.72721131,135.6,135.54,3.3193]
[1726111269588,15.71539928,135.69,135.54,3.3193]
[1726111269784,11.35,135.6,135.54,3.3193]
[1726111270586,3.61129058,135.59,135.54,3.3193]
[1726111271686,15.71539928,135.69,135.55,11.35]
[1726111271890,11.35,135.61,135.55,11.35]
[1726111272078,1.16139872,135.68,135.54,1.4218]
[1726111272079,3.60390462,135.62,135.56,14.6688]
[1726111272278,11.35,135.62,135.56,14.6688]
[1726111272482,11.35,135.62,135.55,1.3352]
[1726111272483,11.35,135.61,135.55,1.3352]
[1726111272686,11.35,135.61,135.55,16.0044]
[1726111273385,15.03838555,135.61,135.55,16.0044]
[1726111274690,15.03838555,135.61,135.55,12.6852]
[1726111275591,11.35,135.59,135.55,12.6852]
[1726111278596,11.35,135.59,135.55,16.0045]
[1726111278992,11.35,135.59,135.55,4.6545]
[1726111283499,11.35,135.59,135.56,3.3189]
[1726111283899,15.03838555,135.61,135.56,3.3189]
[1726111284101,11.35,135.61,135.56,3.3189]
[1726111284705,3.73818871,135.6,135.56,3.3189]
[1726111287309,11.35,135.61,135.56,3.3189]
[1726111287803,11.35,135.62,135.57,3.3187]
[1726111288005,15.00961038,135.62,135.57,3.3187]
[1726111288904,15.00961038,135.62,135.55,2.6466]
[1726111289105,11.35,135.59,135.55,2.6466]
[1726111290506,11.35,135.59,135.55,5.9658]
[1726111291297,3.65961038,135.62,135.56,3.3188]
[1726111291610,11.35,135.61,135.56,3.3188]
[1726111291811,15.05166506,135.61,135.56,3.3188]
[1726111293005,3.70166506,135.61,135.56,3.3188]
[1726111293210,11.35,135.61,135.56,3.3188]
[1726111293515,15.05092731,135.61,135.56,3.3188]
[1726111296812,15.05092731,135.61,135.55,1.3352]
[1726111297218,11.35,135.6,135.55,1.3352]
[1726111302007,11.35,135.6,135.55,4.6544]
[1726111306617,11.35,135.6,135.55,1.3352]
[1726111318430,11.35,135.6,135.55,4.6544]
[1726111319442,15.05092731,135.61,135.56,3.319]
[1726111319736,11.35,135.63,135.56,11.35]
[1726111319931,15.12461205,135.63,135.57,3.3186]
[1726111320732,15.12461205,135.63,135.56,14.6689]
[1726111321537,3.77461205,135.63,135.56,14.6689]
[1726111321732,11.35,135.61,135.56,14.6689]
[1726111321934,15.04898701,135.61,135.55,16.0044]
[1726111322139,11.35,135.6,135.55,16.0044]
[1726111322339,11.35,135.6,135.55,4.6544]
[1726111322736,3.69492908,135.59,135.55,4.6544]
[1726111324040,15.71278831,135.69,135.55,16.0044]
[1726111324235,11.35,135.62,135.56,3.3189]
[1726111324441,3.67473716,135.61,135.56,3.3189]
[1726111325647,15.71278831,135.68,135.55,12.6852]
[1726111325845,11.35,135.62,135.55,12.6852]
[1726111326045,3.70941145,135.61,135.56,3.3189]
[1726111331835,15.05941145,135.61,135.55,1.3352]
[1726111332748,15.05941145,135.61,135.55,4.6544]
[1726111336639,11.35,135.59,135.55,1.3352]
[1726111337741,11.35,135.59,135.55,4.6545]
[1726111340061,15.71278831,135.65,135.55,16.0045]
[1726111340242,11.35,135.61,135.56,3.319]
[1726111341549,11.35,135.61,135.55,16.0044]
[1726111349567,11.35,135.61,135.56,3.319]
[1726111350563,19.3816215,135.65,135.55,1.3352]
[1726111350762,11.35,135.64,135.58,11.35]
[1726111351061,19.3816215,135.65,135.59,11.35]
[1726111351265,3.66883319,135.65,135.61,11.35]
[1726111351958,102.71624856,135.66,135.61,11.35]
[1726111352562,106.38648448,135.66,135.61,11.35]
[1726111352765,3.67023592,135.66,135.62,11.35]
[1726111352967,11.35,135.68,135.62,11.35]
[1726111353959,15.70711997,135.72,135.62,11.35]
[1726111354163,11.35,135.68,135.62,11.35]
[1726111357068,11.35,135.67,135.61,11.35]
[1726111357368,3.70398893,135.66,135.61,11.35]
[1726111359070,11.35,135.64,135.56,1.3504]
[1726111359270,3.69366319,135.63,135.58,11.35]
[1726111360672,3.69366319,135.63,135.58,14.6685]
[1726111361070,11.35,135.65,135.59,11.35]
[1726111361273,15.07537795,135.65,135.59,11.35]
[1726111362068,11.35,135.66,135.6,12.7098]
[1726111362261,11.35,135.68,135.61,11.35]
[1726111363573,11.35,135.68,135.61,14.6676]
[1726111364278,11.35,135.68,135.61,3.3176]
[1726111364473,11.35,135.68,135.6,12.7098]
[1726111364671,11.35,135.68,135.61,1.4028]
[1726111364977,11.35,135.68,135.62,11.35]
[1726111370081,11.35,135.68,135.61,2.7057]
[1726111370372,11.35,135.66,135.61,2.7057]
[1726111371375,15.05150324,135.66,135.61,2.7057]
[1726111373982,11.35,135.67,135.61,6.0234]
[1726111374173,15.1285718,135.67,135.61,6.0234]
[1726111380382,11.35,135.67,135.61,6.0234]
[1726111380683,3.66637582,135.66,135.61,6.0234]
[1726111382780,11.35,135.67,135.61,2.7057]
[1726111382977,15.70766514,135.75,135.61,2.7057]
[1726111383281,11.35,135.66,135.61,2.7057]
[1726111383476,3.71800243,135.65,135.61,2.7057]
[1726111384875,3.71800243,135.65,135.61,6.0234]
[1726111385282,3.71800243,135.65,135.61,2.7057]
[1726111385675,11.35,135.66,135.61,14.0557]
[1726111386186,15.70766514,135.75,135.63,11.35]
[1726111386391,11.35,135.69,135.63,11.35]
[1726111386576,15.00531363,135.69,135.63,11.35]
[1726111386883,15.00531363,135.69,135.62,11.35]
[1726111387086,11.35,135.69,135.62,11.35]
[1726111387584,15.06514696,135.69,135.62,11.35]
[1726111387782,11.35,135.67,135.61,6.0233]
[1726111387978,11.35,135.66,135.61,2.7057]
[1726111388372,11.35,135.66,135.61,1.4028]
[1726111388681,11.35,135.65,135.61,1.4028]
[1726111389192,15.70766514,135.74,135.62,11.35]
[1726111389388,1.16067972,135.73,135.63,11.35]
[1726111389687,11.35,135.69,135.63,11.35]
[1726111390478,3.7568156,135.68,135.63,11.35]
[1726111390678,15.70766514,135.75,135.63,11.35]
[1726111390880,11.35,135.7,135.63,11.35]
[1726111391081,3.74206564,135.69,135.63,11.35]
[1726111391885,3.74206564,135.69,135.63,14.6672]
[1726111392084,11.35,135.7,135.63,14.6672]
[1726111392284,3.68490953,135.69,135.64,11.35]
[1726111392487,15.70766514,135.75,135.64,14.667]
[1726111392688,11.35,135.71,135.64,14.667]
[1726111392887,3.76271559,135.7,135.65,1.378]
[1726111396390,15.11271559,135.7,135.65,1.378]
[1726111396592,11.35,135.7,135.65,1.378]
[1726111397095,15.06211308,135.7,135.65,1.378]
[1726111397289,15.06211308,135.7,135.61,1.4028]
[1726111397489,11.35,135.68,135.62,11.35]
[1726111397890,3.74492448,135.68,135.63,11.35]
[1726111398292,3.74492448,135.68,135.61,1.4028]
[1726111398293,11.35,135.68,135.62,11.35]
[1726111398490,7.02050239,135.67,135.62,11.35]
[1726111399189,3.3166,135.66,135.61,12.7528]
[1726111400390,14.6669,135.65,135.61,1.4028]
[1726111400585,11.35,135.65,135.61,1.4028]
[1726111401594,14.6669,135.65,135.61,1.4028]
[1726111402592,3.3171,135.64,135.61,1.4028]
[1726111404294,3.3174,135.63,135.6,1.3015]
[1726111405203,14.6676,135.62,135.57,14.6687]
[1726111406897,11.35,135.62,135.56,2.7141]
[1726111407097,11.35,135.62,135.56,14.0641]
[1726111407499,3.3182,135.6,135.56,14.0641]
[1726111408907,3.3182,135.6,135.56,17.3831]
[1726111410403,3.3179,135.61,135.57,3.3188]
[1726111414021,11.35,135.62,135.56,17.3831]
[1726111414613,3.3182,135.6,135.56,17.3831]
[1726111416629,3.3178,135.61,135.57,3.3187]
[1726111419225,3.3181,135.6,135.57,3.3187]
[1726111419423,3.3181,135.6,135.56,17.383]
[1726111420627,11.35,135.6,135.55,3.3192]
[1726111421929,3.3185,135.58,135.55,3.3192]
[1726111422725,3.3184,135.59,135.55,3.3192]
[1726111423526,3.3186,135.58,135.55,3.3192]
[1726111426139,11.35,135.58,135.54,1.3891]
[1726111426737,14.6686,135.58,135.54,4.7084]
[1726111426927,3.3186,135.58,135.54,1.3891]
[1726111427128,3.3186,135.58,135.55,11.35]
[1726111427329,3.3186,135.58,135.55,14.6691]
[1726111427627,3.3184,135.59,135.55,14.6691]
[1726111428133,11.35,135.6,135.55,14.6691]
[1726111429031,11.35,135.6,135.55,11.35]
[1726111429234,11.35,135.6,135.54,4.7085]
[1726111429631,3.3187,135.58,135.54,4.7085]
[1726111429828,3.3187,135.58,135.55,3.3192]
[1726111431336,3.69476875,135.63,135.57,3.3187]
[1726111431523,11.35,135.62,135.56,11.35]
[1726111432231,3.3178,135.61,135.56,14.6689]
[1726111432426,11.35,135.61,135.55,14.1184]
[1726111432827,11.35,135.61,135.55,6.0875]
[1726111433035,11.35,135.6,135.55,6.0875]
[1726111433233,11.35,135.6,135.55,2.7684]
[1726111433438,3.3186,135.58,135.55,2.7684]
[1726111433632,11.35,135.6,135.55,2.7684]
[1726111434035,3.3183,135.59,135.55,6.0875]
[1726111434643,14.6681,135.6,135.55,6.0875]
[1726111434837,14.6681,135.6,135.56,3.3189]
[1726111435036,3.3181,135.6,135.56,3.3189]
[1726111436840,14.6679,135.61,135.56,3.3189]
[1726111439241,11.35,135.59,135.55,6.0876]
[1726111439542,3.3186,135.58,135.54,1.3891]
[1726111439746,3.3186,135.58,135.54,4.7084]
[1726111441340,14.6683,135.59,135.55,3.3191]
[1726111443248,3.3185,135.58,135.54,4.7085]
[1726111444237,3.3185,135.58,135.54,1.3891]
[1726111444443,3.3185,135.58,135.55,3.3192]
[1726111445243,3.3185,135.58,135.54,4.7085]
[1726111446846,3.3185,135.58,135.55,3.3192]
[1726111448650,3.3185,135.58,135.54,4.7085]
[1726111451649,3.3188,135.57,135.54,1.3891]
[1726111452744,11.35,135.56,135.52,2.766]
[1726111452949,11.35,135.55,135.48,11.35]
[1726111453151,15.05488945,135.55,135.48,11.35]
[1726111453352,3.3197,135.54,135.5,3.3203]
[1726111454057,18.37418945,135.55,135.51,3.3202]
[1726111457355,3.3195,135.54,135.5,3.3204]
[1726111458950,18.37418945,135.55,135.51,3.3202]
[1726111459557,15.05488945,135.55,135.52,3.32]
[1726111461267,3.70488945,135.55,135.52,3.32]
[1726111461561,3.70488945,135.55,135.53,3.3197]
[1726111462152,3.3191,135.56,135.53,3.3197]
[1726111462766,3.75958156,135.55,135.53,3.3197]
[1726111464759,3.75958156,135.55,135.52,3.3199]
[1726111464963,15.10958156,135.55,135.52,3.3199]
[1726111465261,18.42898156,135.55,135.5,11.35]
[1726111465562,15.10958156,135.55,135.52,3.3199]
[1726111467368,15.10958156,135.55,135.53,3.3197]
[1726111467669,11.35,135.56,135.5,11.35]
[1726111468057,15.09113751,135.56,135.5,11.35]
[1726111468253,11.35,135.56,135.53,3.3195]
[1726111471073,11.35,135.55,135.53,3.3195]
[1726111475773,11.35,135.55,135.52,3.3199]
[1726111477171,3.3191,135.56,135.52,3.3199]
[1726111477375,11.35,135.54,135.52,3.3199]
[1726111479478,11.35,135.54,135.53,3.3198]
[1726111482072,11.35,135.56,135.48,11.35]
[1726111482286,11.35,135.56,135.5,11.35]
[1726111482579,11.35,135.53,135.46,1.3854]
[1726111482773,11.35,135.52,135.47,2.7045]
[1726111483378,11.35,135.52,135.49,3.3206]
[1726111484883,14.67,135.52,135.49,3.3206]
[1726111485681,11.35,135.52,135.49,3.3206]
[1726111486984,11.35,135.52,135.47,2.7045]
[1726111486985,11.35,135.52,135.5,3.3204]
[1726111493686,11.35,135.52,135.49,3.3207]
[1726111495385,11.35,135.51,135.49,3.3207]
[1726111498084,3.70238898,135.57,135.5,3.3205]
[1726111498285,11.35,135.51,135.5,3.3205]
[1726111501009,11.35,135.51,135.49,3.3207]
[1726111502609,11.35,135.51,135.5,3.3205]
[1726111502905,3.62174025,135.57,135.5,3.3205]
[1726111503106,7.70752739,135.64,135.5,3.3205]
[1726111503107,11.35,135.56,135.54,3.3195]
[1726111503412,11.35,135.58,135.51,11.35]
[1726111503601,11.35,135.58,135.52,4.0398]
[1726111504205,11.35,135.56,135.53,3.3196]
[1726111504511,11.35,135.56,135.52,4.0398]
[1726111505909,11.35,135.56,135.55,3.3193]
[1726111506109,11.35,135.56,135.52,4.0398]
[1726111506503,11.35,135.56,135.54,3.3193]
[1726111507413,11.35,135.56,135.55,3.3193]
[1726111507798,11.35,135.56,135.41,35.51654503]
[1726111508003,11.35,135.56,135.44,14.1149]
[1726111508004,11.35,135.51,135.44,14.1149]
[1726111508203,11.35,135.51,135.44,17.82394464]
[1726111508404,11.35,135.51,135.47,3.3211]
[1726111509307,11.35,135.49,135.46,3.3214]
[1726111509702,11.35,135.49,135.44,2.7649]
[1726111509909,11.35,135.48,135.45,3.3216]
[1726111511215,11.35,135.48,135.44,6.0868]
[1726111511508,11.35,135.46,135.44,2.7649]
[1726111511709,11.35,135.45,135.35,18.08343632]
[1726111511911,11.35,135.43,135.36,15.3707]
[1726111512207,11.35,135.43,135.4,3.3228]
[1726111512809,11.35,135.46,135.42,3.3223]
[1726111514514,3.3213,135.47,135.43,3.3221]
[1726111514712,3.64318878,135.49,135.43,3.3221]
[1726111514713,3.321,135.48,135.43,3.3221]
[1726111514902,11.35,135.46,135.43,3.3221]
[1726111520013,11.35,135.46,135.41,11.35]
[1726111520216,11.35,135.46,135.42,2.7179]
[1726111520519,11.35,135.46,135.44,3.3219]
[1726111521608,228.0,135.58,135.45,3.3215]
[1726111521817,11.35,135.49,135.45,3.3215]
[1726111522919,14.6707,135.49,135.45,3.3215]
[1726111525022,3.321,135.48,135.44,3.3219]
[1726111525320,11.35,135.47,135.44,3.3219]
[1726111527232,11.35,135.47,135.45,3.3217]
[1726111530028,11.35,135.47,135.44,3.3219]
[1726111534231,14.671,135.48,135.45,3.3217]
[1726111538624,3.3208,135.49,135.46,3.3214]
[1726111538830,11.35,135.5,135.44,11.35]
[1726111539226,11.35,135.5,135.47,3.3211]
[1726111539627,11.35,135.5,135.43,1.3508]
[1726111539934,14.6706,135.5,135.46,3.3214]
[1726111546434,3.3208,135.49,135.45,3.3216]
[1726111546835,3.3208,135.49,135.44,11.35]
[1726111547932,3.3208,135.49,135.46,3.3215]
[1726111548740,14.6706,135.5,135.46,3.3215]
[1726111552035,3.3206,135.5,135.47,3.3211]
[1726111552438,14.6703,135.51,135.47,3.3211]
[1726111552639,14.6703,135.51,135.45,11.35]
[1726111554642,14.6703,135.51,135.47,3.3211]
[1726111558340,14.6703,135.51,135.48,3.3209]
[1726111558643,3.3203,135.51,135.48,3.3209]
[1726111558842,14.67,135.52,135.48,3.3209]
[1726111559340,14.67,135.52,135.49,3.3207]
[1726111560048,14.67,135.52,135.48,3.3209]
[1726111563348,3.3203,135.51,135.43,1.3508]
[1726111563551,3.3203,135.51,135.45,11.35]
[1726111563750,3.3205,135.5,135.47,3.3212]
[1726111565452,3.3203,135.51,135.47,3.3212]
[1726111567248,3.3203,135.51,135.45,11.35]
[1726111567249,3.62338917,135.54,135.45,11.35]
[1726111567551,3.62338917,135.54,135.43,1.3508]
[1726111567552,11.35,135.54,135.48,11.35]
[1726111568446,3.3199,135.53,135.48,14.6708]
[1726111568847,3.3199,135.53,135.48,11.35]
[1726111569041,3.3204,135.51,135.48,11.35]
[1726111569244,11.35,135.52,135.43,1.3508]
[1726111569751,11.35,135.52,135.44,11.35]
[1726111570552,3.60345813,135.55,135.46,3.3213]
[1726111570752,11.35,135.51,135.46,3.3213]
[1726111571847,14.6703,135.51,135.46,3.3213]
[1726111573854,3.3205,135.5,135.46,3.3213]
[1726111576851,14.6703,135.51,135.46,3.3213]
[1726111577851,14.6703,135.51,135.47,3.3212]
[1726111580757,3.3206,135.5,135.46,3.3215]
[1726111585662,3.3206,135.5,135.47,3.3212]
[1726111586571,14.6703,135.51,135.47,3.3212]
[1726111588767,14.6703,135.51,135.48,3.321]
[1726111590660,3.3205,135.5,135.47,3.3211]
[1726111590867,3.77933559,135.53,135.43,12.7008]
[1726111590868,11.35,135.49,135.43,12.7008]
[1726111591973,11.35,135.49,135.46,3.3214]
[1726111592675,11.35,135.49,135.47,3.3212]
[1726111593270,14.6703,135.51,135.47,3.3212]
[1726111593863,14.6703,135.51,135.48,3.3209]
[1726111595976,14.6703,135.51,135.47,3.3211]
[1726111598175,18.43983637,135.52,135.45,11.35]
[1726111598367,3.32,135.52,135.45,11.35]
[1726111598570,11.35,135.51,135.47,3.321]
[1726111599379,14.6703,135.51,135.47,3.321]
[1726111600277,3.70828064,135.52,135.43,1.3508]
[1726111600278,11.35,135.52,135.46,11.35]
[1726111601074,3.32,135.53,135.48,11.35]
[1726111601574,3.32,135.53,135.49,3.3206]
[1726111603076,3.32,135.53,135.5,3.3204]
[1726111603281,14.6696,135.54,135.5,3.3204]
[1726111603881,11.35,135.55,135.49,11.35]
[1726111604177,11.35,135.56,135.5,11.35]
[1726111604983,11.35,135.56,135.52,3.32]
[1726111605481,14.6692,135.56,135.52,3.32]
[1726111607079,3.3193,135.55,135.52,3.32]
[1726111607481,14.6693,135.55,135.51,3.3202]